bitfinex/quotes_SOLUSD_20240705
["timestamp","ask_amount","ask_price","bid_price","bid_amount"]
[1720200721263,15.4043,135.39,135.29,20.17]
[1720200721467,6.5822,135.41,135.31,100.0]
[1720200721631,6.5822,135.41,135.32,20.17]
[1720200721835,6.5822,135.41,135.33,0.17]
[1720200722134,6.5822,135.41,135.32,20.0]
[1720200722332,6.5822,135.41,135.3,100.0]
[1720200722333,6.5822,135.41,135.31,20.0]
[1720200722802,6.5822,135.41,135.32,100.17]
[1720200722988,6.5822,135.41,135.34,100.0]
[1720200723302,6.5822,135.41,135.35,20.17]
[1720200723682,17.338835,135.43,135.36,100.0]
[1720200723895,0.876435,135.43,135.37,20.17]
[1720200724688,0.876435,135.43,135.37,20.0]
[1720200724892,0.876435,135.43,135.35,20.0]
[1720200725076,0.876435,135.43,135.36,0.17]
[1720200726801,0.876435,135.43,135.38,100.0]
[1720200727009,0.876435,135.43,135.39,0.17]
[1720200727790,0.876435,135.43,135.38,20.17]
[1720200728401,0.876435,135.43,135.38,380.97]
[1720200728622,0.1,135.49,135.39,26.328]
[1720200728776,0.1,135.49,135.4,0.17]
[1720200728980,0.1,135.49,135.41,100.0]
[1720200729208,0.1,135.49,135.4,0.17]
[1720200729373,0.1,135.49,135.42,100.0]
[1720200729706,0.1,135.49,135.43,0.17]
[1720200730496,0.1,135.49,135.46,100.0]
[1720200730710,16.848635,135.57,135.47,20.17]
[1720200730896,16.848635,135.57,135.47,400.97]
[1720200731081,16.848635,135.57,135.5,100.0]
[1720200731082,0.876435,135.57,135.5,100.0]
[1720200731276,0.876435,135.57,135.52,100.0]
[1720200731493,0.876435,135.57,135.53,35.6744]
[1720200731806,0.876435,135.57,135.53,516.4744]
[1720200732003,0.1,135.59,135.56,100.0]
[1720200732181,0.1,135.59,135.57,20.17]
[1720200732509,0.1,135.59,135.58,100.0]
[1720200732676,0.1,135.59,135.58,120.17]
[1720200732983,9.77896178,135.6,135.58,500.97]
[1720200733188,7.56471824,135.6,135.59,20.0]
[1720200733399,7.56471824,135.6,135.54,380.8]
[1720200734474,7.56471824,135.6,135.48,380.8]
[1720200734675,35.478,135.59,135.44,380.8]
[1720200734889,35.478,135.59,135.44,480.8]
[1720200735298,42.8533,135.59,135.44,380.8]
[1720200735483,6.6638,135.58,135.42,380.8]
[1720200735690,20.17,135.57,135.38,255.0]
[1720200735896,20.17,135.57,135.41,100.0]
[1720200736092,20.17,135.57,135.38,260.93443294]
[1720200736295,20.17,135.57,135.4,100.0]
[1720200736483,20.17,135.57,135.41,100.0]
[1720200736684,20.17,135.57,135.38,260.93443294]
[1720200736908,20.17,135.57,135.39,100.0]
[1720200737092,20.17,135.57,135.41,100.0]
[1720200737292,20.17,135.57,135.42,20.0]
[1720200737503,0.17,135.57,135.39,100.0]
[1720200737690,0.17,135.57,135.41,100.0]
[1720200737891,20.17,135.57,135.39,100.0]
[1720200738097,7.3774,135.55,135.38,360.93443294]
[1720200738411,0.17,135.54,135.38,360.93443294]
[1720200738599,20.17,135.57,135.38,463.85161208]
[1720200738799,20.17,135.57,135.38,363.85161208]
[1720200739104,20.17,135.57,135.41,100.0]
[1720200739420,6.6638,135.58,135.4,45.46]
[1720200739718,6.6638,135.58,135.41,20.0]
[1720200740219,6.6638,135.58,135.41,380.8]
[1720200740604,6.6638,135.58,135.43,100.0]
[1720200740803,6.6638,135.58,135.45,100.0]
[1720200740996,6.6638,135.58,135.44,45.46]
[1720200741304,6.6638,135.58,135.47,100.0]
[1720200741491,6.6638,135.58,135.45,0.17]
[1720200741695,6.6638,135.58,135.45,20.17]
[1720200742217,6.6638,135.58,135.46,20.0]
[1720200742391,6.6638,135.58,135.47,0.17]
[1720200742725,6.6638,135.58,135.47,100.17]
[1720200742901,6.6638,135.58,135.46,20.0]
[1720200743105,6.6638,135.58,135.45,0.17]
[1720200743308,14.0396,135.58,135.44,20.0]
[1720200743496,7.3764,135.57,135.43,20.0]
[1720200743691,7.3764,135.57,135.42,380.8]
[1720200743692,7.3768,135.56,135.42,380.8]
[1720200743902,13.8475,135.53,135.38,638.71717914]
[1720200744230,7.3796,135.51,135.38,638.71717914]
[1720200744518,0.17,135.5,135.38,383.71717914]
[1720200744712,7.3795,135.51,135.38,383.71717914]
[1720200744894,20.17,135.5,135.38,383.71717914]
[1720200745096,0.17,135.5,135.38,483.71717914]
[1720200745314,6.4686,135.53,135.38,483.71717914]
[1720200745527,0.17,135.52,135.38,483.71717914]
[1720200746001,0.17,135.52,135.39,20.0]
[1720200746321,0.17,135.52,135.38,383.88717914]
[1720200746322,20.17,135.52,135.38,383.88717914]
[1720200746618,6.0405,135.5,135.38,383.71717914]
[1720200746794,0.17,135.49,135.38,383.71717914]
[1720200747197,0.17,135.49,135.39,100.0]
[1720200747422,0.17,135.49,135.38,383.71717914]
[1720200748814,0.17,135.49,135.39,20.0]
[1720200749417,6.2469,135.47,135.38,2.91717914]
[1720200749615,0.17,135.46,135.38,2.91717914]
[1720200749824,20.17,135.46,135.38,2.91717914]
[1720200751700,0.17,135.46,135.38,2.91717914]
[1720200751902,20.17,135.46,135.38,2.91717914]
[1720200752432,6.2469,135.47,135.38,2.91717914]
[1720200752600,6.2469,135.47,135.35,20.0]
[1720200752801,6.2469,135.47,135.37,100.0]
[1720200753021,6.2469,135.47,135.38,20.0]
[1720200753215,6.2469,135.47,135.34,480.8]
[1720200753423,6.2469,135.47,135.35,20.17]
[1720200753645,6.2469,135.47,135.35,20.0]
[1720200753930,7.72214185,135.46,135.34,380.8]
[1720200754137,0.17,135.45,135.34,380.8]
[1720200754305,15.9039,135.44,135.31,0.1]
[1720200754502,0.17,135.43,135.31,0.1]
[1720200754704,20.17,135.43,135.31,0.1]
[1720200755305,15.9039,135.41,135.31,0.1]
[1720200755506,9.7461,135.33,135.23,0.876435]
[1720200755713,20.0,135.32,135.23,0.876435]
[1720200755924,0.17,135.31,135.23,0.876435]
[1720200756338,6.391,135.3,135.23,0.876435]
[1720200756507,20.17,135.29,135.23,0.876435]
[1720200757217,27.5615,135.29,135.17,380.8]
[1720200757423,20.17,135.29,135.17,380.8]
[1720200758337,0.17,135.29,135.17,380.8]
[1720200758530,20.17,135.29,135.17,380.8]
[1720200764115,0.17,135.29,135.18,20.0]
[1720200764316,7.73084575,135.28,135.18,20.0]
[1720200764524,0.17,135.27,135.18,20.0]
[1720200764945,0.17,135.27,135.14,20.0]
[1720200765320,0.17,135.27,135.15,100.0]
[1720200765525,0.17,135.27,135.14,7.73036357]
[1720200765820,7.3946,135.24,135.11,0.1]
[1720200766135,13.5941,135.22,135.11,0.1]
[1720200766443,7.3965,135.2,135.11,0.1]
[1720200766649,8.7697,135.18,135.11,0.1]
[1720200766854,0.17,135.17,135.11,0.1]
[1720200767017,20.17,135.17,135.11,0.1]
[1720200767839,6.2459,135.16,135.11,0.1]
[1720200768037,0.17,135.15,135.11,0.1]
[1720200768649,6.2459,135.16,135.11,0.1]
[1720200769229,0.17,135.15,135.11,0.1]
[1720200771233,6.2459,135.16,135.11,0.1]
[1720200773333,6.0108,135.19,135.11,0.1]
[1720200775373,27.3979,135.18,135.11,0.1]
[1720200775538,7.3981,135.17,135.11,0.1]
[1720200775745,20.0,135.16,135.11,0.1]
[1720200776242,27.3982,135.17,135.11,0.1]
[1720200776445,0.17,135.15,135.11,0.1]
[1720200776652,0.17,135.16,135.11,0.1]
[1720200776965,0.17,135.17,135.11,0.1]
[1720200778546,16.0043,135.16,135.11,0.1]
[1720200778748,0.17,135.15,135.11,0.1]
[1720200780276,6.0108,135.19,135.11,0.1]
[1720200780450,0.17,135.18,135.11,0.1]
[1720200780971,6.0108,135.19,135.11,0.1]
[1720200782947,0.17,135.18,135.11,0.1]
[1720200783572,20.17,135.18,135.11,0.1]
[1720200783975,7.3984,135.17,135.11,0.1]
[1720200784145,15.025,135.12,135.03,380.8]
[1720200784346,0.17,135.11,135.01,0.1]
[1720200785744,20.17,135.11,135.01,0.1]
[1720200786386,7.402,135.1,135.01,0.1]
[1720200786584,20.17,135.09,135.01,0.1]
[1720200787395,20.0,135.11,135.01,0.1]
[1720200787747,0.17,135.1,135.01,0.1]
[1720200787947,6.5727,135.08,135.01,0.1]
[1720200788185,20.17,135.07,135.01,0.1]
[1720200788469,15.0982,135.05,134.96,0.876435]
[1720200788771,27.5752,135.04,134.96,0.876435]
[1720200788979,20.17,135.04,134.96,0.876435]
[1720200789282,27.5755,135.04,134.96,0.876435]
[1720200789459,7.4063,135.02,134.96,0.876435]
[1720200789781,6.1576,135.0,134.96,0.876435]
[1720200789985,0.17,134.99,134.96,0.876435]
[1720200790283,0.17,134.99,134.86,386.844]
[1720200790284,7.5781,134.99,134.86,386.844]
[1720200790455,20.0,134.98,134.86,386.844]
[1720200790660,0.17,134.97,134.86,386.844]
[1720200791279,0.17,134.98,134.86,386.844]
[1720200791981,0.17,134.99,134.87,20.0]
[1720200792176,6.1576,135.0,134.87,20.0]
[1720200793187,6.1576,135.0,134.86,386.844]
[1720200793188,20.0,134.99,134.86,386.844]
[1720200793551,27.408,134.99,134.86,6.044]
[1720200793750,0.17,134.98,134.85,380.8]
[1720200793950,7.5786,134.98,134.85,380.8]
[1720200794178,16.0626,134.96,134.85,380.8]
[1720200794379,0.17,134.95,134.85,380.8]
[1720200794753,7.4122,134.92,134.83,0.876435]
[1720200794980,6.2382,134.93,134.83,0.876435]
[1720200795166,20.17,134.92,134.83,0.876435]
[1720200795987,7.4124,134.91,134.83,0.876435]
[1720200796192,20.17,134.9,134.81,0.1]
[1720200796363,6.1353,134.86,134.78,0.0439637]
[1720200796689,20.17,134.85,134.78,0.0439637]
[1720200797058,0.17,134.85,134.78,0.0439637]
[1720200797276,6.1353,134.86,134.78,0.0439637]
[1720200797480,0.17,134.85,134.78,0.0439637]
[1720200798693,20.17,134.85,134.78,0.0439637]
[1720200798895,27.5859,134.85,134.78,0.0439637]
[1720200799195,7.4173,134.82,134.69,0.876435]
[1720200799372,27.5882,134.81,134.69,0.876435]
[1720200799564,5.6404,134.89,134.72,6.2367]
[1720200799763,5.6404,134.89,134.73,15.3058]
[1720200799764,7.71408157,134.81,134.73,15.3058]
[1720200799967,5.6404,134.89,134.73,60.7658]
[1720200800182,7.71341475,134.87,134.73,441.5658]
[1720200800361,7.71341475,134.87,134.73,541.5658]
[1720200800574,5.6404,134.89,134.75,100.0]
[1720200800768,5.6404,134.89,134.77,100.0]
[1720200800982,5.6404,134.89,134.78,20.17]
[1720200801189,5.6404,134.89,134.76,20.17]
[1720200801489,21.3913,134.95,134.8,100.0]
[1720200801691,21.3913,134.95,134.82,100.0]
[1720200801989,21.3913,134.95,134.81,6.1131]
[1720200803070,20.0,134.94,134.81,6.1131]
[1720200803271,20.0,134.94,134.8,380.8]
[1720200803689,27.4108,134.94,134.8,380.8]
[1720200804000,0.17,134.93,134.8,380.8]
[1720200804203,7.5813,134.93,134.8,380.8]
[1720200804490,7.5813,134.93,134.73,15.3058]
[1720200804491,6.0786,134.9,134.73,15.3058]
[1720200804670,20.17,134.89,134.74,100.0]
[1720200805086,0.17,134.89,134.78,100.0]
[1720200805293,0.17,134.89,134.74,45.46]
[1720200805781,0.17,134.89,134.77,100.0]
[1720200805990,0.17,134.89,134.77,480.8]
[1720200806296,6.5053,134.94,134.79,100.0]
[1720200806481,6.5053,134.94,134.81,100.0]
[1720200806682,6.5053,134.94,134.82,65.46]
[1720200806892,6.5053,134.94,134.83,0.17]
[1720200807187,7.71508497,134.96,134.84,100.0]
[1720200807392,6.1558,134.98,134.85,20.17]
[1720200807566,7.71743699,134.95,134.82,446.26]
[1720200807773,6.1558,134.98,134.83,0.17]
[1720200808107,7.71733655,134.95,134.83,0.17]
[1720200808470,13.5643,134.98,134.83,0.17]
[1720200808666,7.71694836,134.94,134.82,380.8]
[1720200808887,6.1558,134.98,134.8,6.6193]
[1720200808888,20.0,134.93,134.8,6.6193]
[1720200809114,15.0681,134.91,134.77,380.8]
[1720200809301,6.4995,134.89,134.77,380.8]
[1720200809472,6.4995,134.89,134.78,100.0]
[1720200809675,15.0681,134.91,134.77,380.8]
[1720200810074,15.0681,134.91,134.77,386.75700999]
[1720200810301,15.0681,134.91,134.78,20.17]
[1720200810587,15.0681,134.91,134.77,386.75700999]
[1720200810779,0.17,134.9,134.78,100.0]
[1720200811193,0.17,134.9,134.77,386.75700999]
[1720200811405,0.17,134.9,134.78,1.41974216]
[1720200811578,0.17,134.9,134.77,480.8]
[1720200811579,20.17,134.9,134.77,480.8]
[1720200811777,20.17,134.9,134.79,100.0]
[1720200811778,0.17,134.9,134.79,100.0]
[1720200811993,15.0681,134.91,134.81,100.0]
[1720200812887,15.0681,134.91,134.82,0.17]
[1720200813085,14.21670671,134.93,134.83,100.0]
[1720200813397,15.3051,134.96,134.83,380.8]
[1720200813576,7.72232489,134.94,134.83,380.8]
[1720200814606,0.17,134.93,134.83,380.8]
[1720200815678,0.17,134.94,134.83,380.8]
[1720200816289,0.17,134.94,134.84,0.17]
[1720200816639,15.3051,134.96,134.84,0.17]
[1720200816786,15.3051,134.96,134.83,380.8]
[1720200817105,100.0,134.93,134.76,9.90796637]
[1720200817304,100.0,134.93,134.71,381.0]
[1720200817305,29.3995,134.9,134.71,381.0]
[1720200817611,20.0,134.89,134.71,381.0]
[1720200817782,20.0,134.89,134.73,100.0]
[1720200817783,0.17,134.88,134.73,100.0]
[1720200817981,0.17,134.88,134.75,100.0]
[1720200818383,0.17,134.88,134.76,100.0]
[1720200818610,0.17,134.89,134.78,100.0]
[1720200818913,0.17,134.89,134.74,100.0]
[1720200819086,0.17,134.89,134.75,20.0]
[1720200819286,0.17,134.89,134.78,100.0]
[1720200819498,0.17,134.89,134.79,0.17]
[1720200819900,0.17,134.89,134.77,100.0]
[1720200820107,21.9863,134.9,134.78,0.17]
[1720200820314,21.9863,134.9,134.79,100.0]
[1720200820496,21.9863,134.9,134.8,20.17]
[1720200820702,21.9863,134.9,134.78,26.5173]
[1720200821014,21.9863,134.9,134.79,100.0]
[1720200821316,21.9863,134.9,134.8,20.17]
[1720200821605,21.9863,134.9,134.75,393.18141084]
[1720200822018,21.9863,134.9,134.75,386.83411084]
[1720200822019,0.17,134.89,134.75,386.83411084]
[1720200822202,0.17,134.89,134.75,6.03411084]
[1720200822399,7.4147,134.87,134.72,380.8]
[1720200822596,20.0,134.86,134.72,380.8]
[1720200822803,6.5599,134.84,134.72,380.8]
[1720200823000,0.17,134.83,134.72,380.8]
[1720200823803,6.5599,134.84,134.72,380.8]
[1720200824427,6.5599,134.84,134.73,120.17]
[1720200824720,0.17,134.83,134.72,380.8]
[1720200824894,0.17,134.83,134.78,7.4193]
[1720200824895,16.1399,134.82,134.78,7.4193]
[1720200825093,0.17,134.81,134.79,7.4189]
[1720200825288,5.7664,134.81,134.71,0.2]
[1720200825505,5.7664,134.81,134.76,7.4204]
[1720200825706,5.7664,134.81,134.77,7.42]
[1720200826309,0.17,134.81,134.71,0.2]
[1720200826509,22.9775,134.8,134.71,0.2]
[1720200826817,20.17,134.79,134.71,0.2]
[1720200827016,27.89996417,134.79,134.71,0.2]
[1720200827816,7.89996417,134.79,134.71,0.2]
[1720200828011,0.17,134.79,134.71,0.2]
[1720200828217,7.9003261,134.79,134.71,0.2]
[1720200829228,0.17,134.79,134.71,0.2]
[1720200829429,15.5586,134.8,134.71,0.2]
[1720200829931,15.5586,134.8,134.72,0.17]
[1720200830114,15.5586,134.8,134.71,0.2]
[1720200831409,15.5586,134.8,134.72,0.17]
[1720200831725,7.72922366,134.82,134.72,0.17]
[1720200832131,16.4485,134.83,134.72,0.17]
[1720200832337,16.4485,134.83,134.72,380.97]
[1720200832709,16.4485,134.83,134.72,380.8]
[1720200832910,0.17,134.82,134.72,380.8]
[1720200833523,16.4485,134.83,134.72,380.8]
[1720200833724,6.5599,134.84,134.74,100.0]
[1720200834030,6.5599,134.84,134.75,20.0]
[1720200834210,15.385,134.87,134.75,20.0]
[1720200834416,15.385,134.87,134.76,0.17]
[1720200835111,6.4101,134.88,134.76,0.17]
[1720200836224,20.0,134.87,134.75,380.8]
[1720200836412,0.17,134.86,134.75,380.8]
[1720200837407,0.17,134.86,134.76,20.0]
[1720200838399,0.17,134.86,134.75,20.0]
[1720200838605,27.72664897,134.87,134.76,0.17]
[1720200838606,7.72664897,134.87,134.76,0.17]
[1720200838825,6.4101,134.88,134.76,0.17]
[1720200840106,6.4101,134.88,134.76,100.17]
[1720200840301,6.4101,134.88,134.77,120.0]
[1720200840522,15.385,134.91,134.78,0.17]
[1720200841325,15.385,134.91,134.77,20.0]
[1720200841829,15.385,134.91,134.78,100.0]
[1720200842034,15.385,134.91,134.79,20.0]
[1720200842211,15.385,134.91,134.77,120.0]
[1720200842412,15.385,134.91,134.77,20.0]
[1720200842612,20.0,134.9,134.77,20.0]
[1720200843031,0.17,134.89,134.77,20.0]
[1720200843201,6.0025,134.88,134.76,5.9874328]
[1720200843406,20.17,134.87,134.72,502.4088]
[1720200843830,16.1887,134.86,134.72,380.8]
[1720200844008,20.17,134.85,134.72,380.8]
[1720200844412,27.5857,134.85,134.72,380.8]
[1720200844644,6.3875,134.84,134.72,380.8]
[1720200844941,20.17,134.83,134.72,380.8]
[1720200845737,0.17,134.83,134.72,380.8]
[1720200846244,20.17,134.83,134.72,380.8]
[1720200846408,27.5868,134.83,134.72,380.8]
[1720200846609,20.17,134.83,134.72,380.8]
[1720200847219,20.17,134.83,134.71,0.2]
[1720200848135,20.17,134.83,134.71,20.2]
[1720200848518,20.17,134.83,134.71,0.2]
[1720200848724,7.4174,134.82,134.71,0.2]
[1720200848919,29.7153,134.8,134.71,0.2]
[1720200849141,20.17,134.79,134.71,0.2]
[1720200850435,7.4195,134.78,134.71,0.2]
[1720200850645,20.17,134.77,134.71,0.2]
[1720200850823,0.17,134.76,134.71,0.2]
[1720200851021,7.89801749,134.76,134.71,0.2]
[1720200851414,7.89801749,134.76,134.69,0.876435]
[1720200851634,20.0,134.75,134.69,0.876435]
[1720200851837,0.17,134.74,134.69,0.876435]
[1720200852737,21.2973,134.73,134.69,0.876435]
[1720200852941,0.17,134.72,134.62,386.74323797]
[1720200853116,0.17,134.72,134.62,5.94323797]
[1720200853443,0.17,134.72,134.63,20.0]
[1720200853653,6.2088,134.73,134.61,20.2]
[1720200853948,7.72801749,134.76,134.63,45.46]
[1720200854240,6.0014,134.77,134.66,116.3766]
[1720200854444,6.0014,134.77,134.67,20.17]
[1720200855137,6.0014,134.77,134.67,120.17]
[1720200855349,15.5445,134.8,134.67,120.17]
[1720200855520,6.5419,134.82,134.69,106.3617]
[1720200855840,6.5419,134.82,134.71,100.0]
[1720200856135,15.5902,134.84,134.72,20.17]
[1720200856835,15.5902,134.84,134.72,20.0]
[1720200857041,15.5902,134.84,134.7,20.0]
[1720200857950,13.6186,134.82,134.7,20.0]
[1720200858151,0.17,134.81,134.67,20.0]
[1720200858544,0.17,134.81,134.66,397.1766]
[1720200858545,20.17,134.81,134.66,397.1766]
[1720200858753,0.17,134.81,134.66,497.1766]
[1720200858924,20.17,134.81,134.66,402.9618755]
[1720200859248,0.17,134.81,134.67,100.0]
[1720200859423,0.17,134.81,134.67,0.17]
[1720200859631,0.17,134.81,134.69,100.0]
[1720200859837,0.17,134.81,134.7,20.17]
[1720200860149,6.2012,134.82,134.7,400.97]
[1720200862854,6.2012,134.82,134.7,400.8]
[1720200863431,0.17,134.81,134.7,400.8]
[1720200865034,0.17,134.81,134.7,20.0]
[1720200865239,0.17,134.81,134.69,20.17]
[1720200865449,15.5902,134.8,134.66,5.7852755]
[1720200865643,0.17,134.79,134.62,681.26]
[1720200866233,6.0373,134.78,134.62,681.26]
[1720200866431,6.0373,134.78,134.62,679.9893]
[1720200866432,0.17,134.77,134.62,679.9893]
[1720200867539,0.17,134.77,134.64,100.0]
[1720200867741,13.76555619,134.78,134.66,100.0]
[1720200867943,6.0373,134.78,134.68,100.0]
[1720200868145,6.0373,134.78,134.69,20.0]
[1720200868328,6.0373,134.78,134.67,20.0]
[1720200868544,6.0373,134.78,134.67,20.17]
[1720200868743,6.0373,134.78,134.68,100.0]
[1720200869052,6.0373,134.78,134.69,20.17]
[1720200870738,6.0373,134.78,134.7,20.0]
[1720200870939,6.0373,134.78,134.67,500.8]
[1720200871667,6.0373,134.78,134.67,400.8]
[1720200871852,6.0373,134.78,134.68,100.0]
[1720200872165,6.0373,134.78,134.69,20.0]
[1720200872332,6.0373,134.78,134.7,0.17]
[1720200872655,6.0373,134.78,134.67,380.8]
[1720200872989,0.17,134.77,134.67,380.8]
[1720200873487,6.1753,134.75,134.62,380.8]
[1720200873659,0.17,134.74,134.62,380.8]
[1720200873861,0.17,134.74,134.62,5.99882343]
[1720200874077,0.17,134.74,134.61,0.2]
[1720200875261,0.17,134.74,134.62,100.0]
[1720200875467,0.17,134.74,134.63,20.17]
[1720200875664,6.1753,134.75,134.63,20.17]
[1720200875863,6.1753,134.75,134.64,100.0]
[1720200876082,6.1753,134.75,134.65,20.17]
[1720200876703,6.1753,134.75,134.65,0.17]
[1720200876872,6.1753,134.75,134.65,380.97]
[1720200877062,6.1753,134.75,134.66,20.0]
[1720200877758,0.17,134.74,134.66,20.0]
[1720200882492,13.90436275,134.75,134.66,20.0]
[1720200882493,6.1753,134.75,134.66,20.0]
[1720200883364,6.1753,134.75,134.67,0.17]
[1720200884100,6.1753,134.75,134.66,20.0]
[1720200884474,6.1753,134.75,134.67,0.17]
[1720200884971,6.1753,134.75,134.66,20.0]
[1720200886680,6.1753,134.75,134.66,26.01480049]
[1720200888176,0.17,134.74,134.66,26.01480049]
[1720200889798,0.17,134.74,134.63,380.8]
[1720200889969,0.17,134.74,134.63,386.60585619]
[1720200890571,0.17,134.74,134.63,486.60585619]
[1720200891282,6.1753,134.75,134.64,20.0]
[1720200892776,0.17,134.74,134.64,20.0]
[1720200893487,6.1753,134.75,134.65,0.17]
[1720200894791,0.17,134.74,134.65,0.17]
[1720200895196,6.1753,134.75,134.65,0.17]
[1720200895397,0.17,134.74,134.64,400.8]
[1720200896679,0.17,134.74,134.64,500.8]
[1720200896879,6.1753,134.75,134.64,500.8]
[1720200897384,6.1753,134.75,134.65,0.17]
[1720200900683,6.1753,134.75,134.66,100.0]
[1720200900889,6.1753,134.75,134.67,20.17]
[1720200902016,6.1753,134.75,134.66,20.0]
[1720200905325,6.1753,134.75,134.67,0.17]
[1720200905694,6.1753,134.75,134.66,20.0]
[1720200905913,6.1753,134.75,134.65,380.8]
[1720200906604,21.9011,134.73,134.63,5.80585619]
[1720200906803,21.9011,134.73,134.61,0.2]
[1720200907397,0.17,134.72,134.61,0.2]
[1720200907620,21.9011,134.73,134.61,106.10299975]
[1720200907793,21.9011,134.73,134.62,0.17]
[1720200908116,21.9011,134.73,134.63,100.0]
[1720200908326,21.9011,134.73,134.64,20.17]
[1720200909003,21.9011,134.73,134.64,0.17]
[1720200909202,21.9011,134.73,134.62,20.0]
[1720200910014,0.17,134.72,134.61,6.10299975]
[1720200910315,0.17,134.72,134.61,0.2]
[1720200910537,15.5902,134.7,134.61,0.2]
[1720200910824,0.17,134.69,134.61,0.2]
[1720200911298,15.5902,134.7,134.61,20.2]
[1720200911728,0.17,134.69,134.61,20.2]
[1720200913218,0.17,134.69,134.61,0.2]
[1720200913219,6.4059,134.68,134.61,0.2]
[1720200913432,0.17,134.67,134.56,0.876435]
[1720200913727,6.5835,134.65,134.56,0.876435]
[1720200914027,30.17,134.64,134.56,0.876435]
[1720200914229,6.5835,134.63,134.56,0.876435]
[1720200914428,0.17,134.62,134.56,0.876435]
[1720200914728,15.3902,134.61,134.56,0.876435]
[1720200914931,0.17,134.6,134.56,0.876435]
[1720200917237,15.3902,134.61,134.56,0.876435]
[1720200919618,0.17,134.6,134.56,0.876435]
[1720200920344,6.4722,134.59,134.51,0.2]
[1720200920637,0.17,134.58,134.51,0.2]
[1720200922721,30.17,134.58,134.51,0.2]
[1720200923410,7.71816294,134.57,134.51,0.2]
[1720200923606,0.17,134.56,134.51,0.2]
[1720200924423,0.17,134.57,134.51,0.2]
[1720200925420,0.17,134.58,134.51,0.2]
[1720200926620,30.17,134.58,134.51,0.2]
[1720200927932,13.7784,134.57,134.51,0.2]
[1720200928136,7.6021,134.56,134.51,0.2]
[1720200928436,0.17,134.56,134.51,0.2]
[1720200928634,37.6017,134.56,134.51,0.2]
[1720200928841,30.17,134.56,134.51,0.2]
[1720200929841,30.0,134.56,134.51,16.2444]
[1720200930023,6.6545,134.63,134.54,33.47]
[1720200930219,6.6545,134.63,134.56,33.47]
[1720200930436,6.6545,134.63,134.58,33.47]
[1720200930623,6.6545,134.63,134.59,45.0]
[1720200931722,21.1683,134.7,134.6,20.0]
[1720200931918,21.1683,134.7,134.61,45.0]
[1720200932322,14.0794,134.69,134.56,380.8]